bitfinex-derivatives/quotes_SOLF0:USTF0_20220108
["timestamp","ask_amount","ask_price","bid_price","bid_amount"]
[1641627780754,13.14776887,143.34,143.32,4.92376887]
[1641627782257,4.92376887,143.34,143.32,4.92376887]
[1641627784860,4.92376887,143.34,143.33,4.92376887]
[1641627788262,4.92376887,143.34,143.31,4.0]
[1641627788562,42.38310101,143.37,143.31,4.0]
[1641627788563,4.92376887,143.35,143.31,16.45131712]
[1641627789365,4.92376887,143.35,143.34,4.94773408]
[1641627790064,4.92376887,143.35,143.33,4.0]
[1641627790264,4.92376887,143.36,143.33,4.0]
[1641627791065,32.58855887,143.37,143.35,4.94530036]
[1641627792165,4.92376887,143.37,143.35,4.94530036]
[1641627794969,4.92376887,143.37,143.34,4.94530036]
[1641627795970,12.12876887,143.37,143.34,4.94530036]
[1641627798472,4.92376887,143.36,143.33,4.94530036]
[1641627798871,4.92376887,143.36,143.33,8.94530036]
[1641627800372,4.92376887,143.37,143.34,6.67830647]
[1641627803077,4.92376887,143.37,143.34,4.94530036]
[1641627804077,4.92376887,143.37,143.34,13.41930036]
[1641627804276,14.71831101,143.4,143.36,4.0]
[1641627804478,14.71831101,143.4,143.37,4.0]
[1641627804880,14.71831101,143.43,143.34,43.10621728]
[1641627805178,14.71831101,143.43,143.37,4.0]
[1641627806079,25.05831101,143.45,143.34,49.35052829]
[1641627806279,35.22379,143.44,143.36,4.0]
[1641627806682,32.1107,143.43,143.35,4.0]
[1641627806981,32.1107,143.43,143.34,49.35052829]
[1641627807179,32.1107,143.43,143.34,21.68573829]
[1641627807980,32.1107,143.43,143.34,25.68573829]
[1641627808179,27.66479,143.41,143.34,18.71831101]
[1641627808379,32.8949,143.4,143.34,18.71831101]
[1641627808580,32.8949,143.4,143.34,4.0]
[1641627808782,32.8949,143.4,143.33,4.0]
[1641627808982,32.8949,143.4,143.32,18.71831101]
[1641627809481,32.8949,143.4,143.32,4.0]
[1641627810385,32.8949,143.4,143.31,27.66479]
[1641627811185,47.61321101,143.4,143.31,27.66479]
[1641627812392,27.66479,143.38,143.31,27.66479]
[1641627812592,35.03279,143.38,143.31,27.66479]
[1641627812895,27.11186924,143.38,143.31,27.66479]
[1641627813495,27.11186924,143.38,143.3,37.0253]
[1641627813794,20.0,143.36,143.29,14.71831101]
[1641627814396,27.66479,143.34,143.29,14.71831101]
[1641627814594,34.76279,143.34,143.29,14.71831101]
[1641627815094,34.76279,143.34,143.25,29.59335624]
[1641627815095,7.098,143.34,143.25,29.59335624]
[1641627815295,7.098,143.34,143.3,4.0]
[1641627815497,7.098,143.34,143.25,29.59335624]
[1641627815995,27.098,143.34,143.27,14.71831101]
[1641627816195,7.098,143.34,143.27,14.71831101]
[1641627816396,34.76279,143.34,143.27,14.71831101]
[1641627816796,32.1493,143.33,143.25,29.59335624]
[1641627816996,32.1493,143.33,143.25,22.62155717]
[1641627817796,52.1493,143.33,143.25,22.62155717]
[1641627817998,20.0,143.3,143.25,22.62155717]
[1641627818296,27.66479,143.28,143.23,14.71831101]
[1641627820201,27.66479,143.28,143.21,4.0]
[1641627821100,27.66479,143.28,143.22,4.0]
[1641627821604,28.79151416,143.34,143.25,4.0]
[1641627821902,33.7295,143.33,143.25,4.0]
[1641627822400,20.0,143.3,143.23,4.0]
[1641627822701,28.125,143.3,143.22,27.66479]
[1641627822899,8.125,143.3,143.22,27.66479]
[1641627823403,34.2684,143.29,143.2,14.71831101]
[1641627824001,34.2684,143.29,143.18,18.71831101]
[1641627824203,34.2684,143.29,143.18,14.71831101]
[1641627824404,27.66479,143.25,143.18,14.71831101]
[1641627824604,33.47779,143.25,143.2,4.0]
[1641627824805,33.47779,143.25,143.18,14.71831101]
[1641627825009,33.47779,143.25,143.17,27.66479]
[1641627825703,33.47779,143.25,143.17,50.24562851]
[1641627826407,33.47779,143.25,143.19,4.0]
[1641627827108,33.47779,143.25,143.17,27.66479]
[1641627827307,33.47779,143.25,143.19,4.0]
[1641627827909,33.47779,143.25,143.17,31.66479]
[1641627828108,20.0,143.23,143.17,27.66479]
[1641627828309,33.47779,143.25,143.17,31.66479]
[1641627828510,33.47779,143.25,143.18,4.0]
[1641627828909,33.47779,143.25,143.17,27.66479]
[1641627829109,33.47779,143.25,143.19,4.0]
[1641627829511,33.47779,143.25,143.17,27.66479]
[1641627829709,33.47779,143.25,143.19,4.0]
[1641627830612,33.47779,143.25,143.17,27.66479]
[1641627831614,33.47779,143.25,143.21,4.0]
[1641627832914,33.47779,143.25,143.17,27.66479]
[1641627833115,33.47779,143.25,143.19,4.0]
[1641627833417,33.47779,143.25,143.17,27.66479]
[1641627833617,33.47779,143.25,143.2,4.0]
[1641627834117,33.47779,143.25,143.17,27.66479]
[1641627834517,33.47779,143.25,143.21,4.0]
[1641627834717,27.66479,143.25,143.21,4.0]
[1641627840325,34.31979,143.25,143.21,4.0]
[1641627841927,34.31979,143.25,143.18,22.58912199]
[1641627842127,34.31979,143.25,143.21,4.0]
[1641627844831,34.31979,143.25,143.22,1.72716357]
[1641627845734,54.31979,143.25,143.18,20.44547458]
[1641627846035,54.31979,143.25,143.18,16.44547458]
[1641627846434,27.66479,143.21,143.18,16.44547458]
[1641627846639,33.03679,143.21,143.18,16.44547458]
[1641627846836,33.03679,143.21,143.19,1.72716357]
[1641627847838,27.66479,143.21,143.19,1.72716357]
[1641627848046,27.66479,143.25,143.17,4.0]
[1641627848238,27.66479,143.25,143.19,4.0]
[1641627848438,27.66479,143.25,143.18,4.0]
[1641627848840,27.66479,143.25,143.17,62.43039]
[1641627849439,27.66479,143.25,143.19,1.72716357]
[1641627849839,27.66479,143.25,143.19,5.72716357]
[1641627850541,27.66479,143.25,143.2,1.72716357]
[1641627853048,3.21378767,143.24,143.18,1.72716357]
[1641627854649,20.0,143.23,143.18,1.72716357]
[1641627856452,20.0,143.2,143.18,1.72716357]
[1641627856652,7.93,143.2,143.15,14.71831101]
[1641627857655,7.93,143.2,143.14,4.0]
[1641627857956,7.93,143.2,143.13,26.62191428]
[1641627858455,27.66479,143.17,143.13,22.62191428]
[1641627858656,27.66479,143.17,143.11,14.71831101]
[1641627858858,33.13279,143.17,143.13,4.0]
[1641627860057,33.13279,143.17,143.14,4.0]
[1641627860356,27.66479,143.19,143.11,14.71831101]
[1641627860557,27.66479,143.19,143.14,4.0]
[1641627860857,27.66479,143.19,143.16,4.0]
[1641627862759,27.66479,143.19,143.13,14.71831101]
[1641627862959,27.66479,143.19,143.16,4.0]
[1641627864058,27.66479,143.19,143.13,14.71831101]
[1641627864260,27.66479,143.19,143.16,4.0]
[1641627865062,27.66479,143.19,143.16,8.93038397]
[1641627866668,10.42,143.2,143.16,4.93038397]
[1641627866867,10.42,143.2,143.17,4.0]
[1641627867370,10.42,143.2,143.16,4.93038397]
[1641627867868,10.42,143.2,143.16,8.93038397]
[1641627868070,10.42,143.2,143.16,4.93038397]
[1641627868369,10.42,143.2,143.17,4.93038397]
[1641627870073,10.42,143.2,143.16,8.93038397]
[1641627872475,38.08479,143.2,143.16,8.93038397]
[1641627872675,38.08479,143.2,143.16,4.93038397]
[1641627873377,30.15471341,143.2,143.17,4.0]
[1641627873578,4.93038397,143.21,143.16,4.93038397]
[1641627873877,27.66479,143.23,143.16,4.93038397]
[1641627874093,32.60156622,143.23,143.18,8.93038397]
[1641627875880,20.0,143.22,143.18,4.93038397]
[1641627876079,5.381,143.22,143.18,4.93038397]
[1641627876280,5.381,143.22,143.19,4.93038397]
[1641627876681,27.66479,143.2,143.19,4.93038397]
[1641627877079,27.66479,143.2,143.17,4.93038397]
[1641627877485,38.24847622,143.21,143.17,4.93038397]
[1641627877981,4.93677622,143.21,143.19,4.0]
[1641627878181,5.381,143.22,143.19,8.93038397]
[1641627878382,32.60156622,143.23,143.19,4.93038397]
[1641627878581,32.60156622,143.23,143.2,4.0]
[1641627878882,27.66479,143.23,143.2,8.93038397]
[1641627879282,27.66479,143.23,143.2,4.93038397]
[1641627880185,27.66479,143.23,143.22,4.93038397]
[1641627881087,32.60156622,143.25,143.22,4.93038397]
[1641627881284,4.93677622,143.25,143.24,4.0]
[1641627881484,14.71831101,143.28,143.24,4.0]
[1641627881683,14.71831101,143.28,143.27,4.0]
[1641627881984,14.71831101,143.29,143.27,8.809]
[1641627883085,27.66479,143.31,143.26,4.0]
[1641627883284,8.646,143.3,143.26,4.0]
[1641627884585,8.646,143.3,143.22,22.61401273]
[1641627884787,8.646,143.3,143.24,4.0]
[1641627885187,8.646,143.3,143.23,14.71831101]
[1641627885686,8.646,143.3,143.24,4.0]
[1641627886088,23.36431101,143.3,143.24,4.0]
[1641627886788,27.66479,143.26,143.24,4.0]
[1641627886987,33.17579,143.26,143.24,4.0]
[1641627887687,5.511,143.26,143.25,4.0]
[1641627888088,77.33610101,143.31,143.25,4.0]
[1641627888287,77.33610101,143.31,143.24,8.649]
[1641627888688,62.61779,143.31,143.27,4.0]
[1641627888887,90.28258,143.31,143.27,4.0]
[1641627889087,34.953,143.31,143.29,4.0]
[1641627889287,10.62,143.32,143.29,4.0]
[1641627889691,10.62,143.32,143.24,33.2668]
[1641627889888,10.62,143.32,143.28,4.0]
[1641627890089,10.62,143.32,143.26,4.0]
[1641627890291,16.844,143.32,143.26,4.0]
[1641627890488,16.844,143.32,143.25,4.0]
[1641627890690,20.0,143.31,143.22,6.97325756]
[1641627890890,27.66479,143.3,143.22,6.97325756]
[1641627891791,27.66479,143.3,143.21,27.66479]
[1641627892491,31.7901,143.29,143.21,27.66479]
[1641627892691,40.1101,143.29,143.21,27.66479]
[1641627893591,40.1101,143.29,143.26,4.0]
[1641627893789,8.32,143.29,143.26,4.0]
[1641627894190,8.32,143.29,143.21,27.66479]
[1641627894889,8.32,143.29,143.25,4.0]
[1641627895991,90.07288,143.3,143.26,4.0]
[1641627896292,90.07288,143.3,143.21,27.66479]
[1641627896491,10.62,143.32,143.29,4.0]
[1641627896690,10.62,143.32,143.29,10.913]
[1641627896891,14.71831101,143.33,143.29,10.913]
[1641627897190,62.19999,143.35,143.29,10.913]
[1641627897590,20.0,143.34,143.27,4.0]
[1641627897790,20.0,143.34,143.24,4.0]
[1641627897990,20.0,143.34,143.21,81.06280171]
[1641627898191,20.0,143.34,143.25,4.0]
[1641627898391,37.91850747,143.34,143.26,4.0]
[1641627898790,3.96365785,143.33,143.26,4.0]
[1641627898992,27.66479,143.29,143.26,4.0]
[1641627899190,34.75579,143.29,143.26,4.0]
[1641627900293,34.75579,143.29,143.24,4.0]
[1641627901193,34.75579,143.29,143.21,34.6382907]
[1641627901497,34.75579,143.29,143.26,4.0]
[1641627902300,34.75579,143.29,143.21,34.6382907]
[1641627902699,34.75579,143.29,143.26,4.0]
[1641627903099,34.75579,143.29,143.21,34.6382907]
[1641627903299,34.75579,143.29,143.26,4.0]
[1641627904102,34.75579,143.29,143.23,14.71831101]
[1641627904602,34.75579,143.29,143.27,4.0]
[1641627904804,27.66479,143.29,143.27,4.0]
[1641627905204,27.66479,143.29,143.24,31.66479]
[1641627905505,27.66479,143.29,143.27,4.0]
[1641627906103,27.66479,143.29,143.26,4.0]
[1641627906303,27.66479,143.29,143.27,4.0]
[1641627906706,14.71831101,143.33,143.27,5.73042352]
[1641627906903,14.71831101,143.33,143.27,1.73042352]
[1641627907106,14.71831101,143.33,143.27,29.39521352]
[1641627907308,14.71831101,143.33,143.29,4.0]
[1641627907506,3.21224054,143.33,143.29,9.99]
[1641627907705,3.21224054,143.33,143.29,5.99]
[1641627907907,3.21224054,143.33,143.3,4.0]
[1641627908106,3.21224054,143.33,143.29,5.99]
[1641627908805,3.21224054,143.33,143.31,4.0]
[1641627909210,3.21224054,143.33,143.29,5.99]
[1641627909406,14.71831101,143.35,143.32,4.0]
[1641627909607,14.71831101,143.35,143.32,10.346]
[1641627909807,3.20963567,143.34,143.32,6.346]
[1641627910006,14.71831101,143.36,143.33,4.0]
[1641627910206,14.71831101,143.36,143.35,4.0]
[1641627910908,14.71831101,143.4,143.35,4.0]
[1641627911209,14.71831101,143.4,143.34,4.0]
[1641627911408,20.18631101,143.4,143.34,4.0]
[1641627911610,20.18631101,143.4,143.31,33.9474]
[1641627912009,20.18631101,143.4,143.36,4.0]
[1641627912211,20.18631101,143.4,143.17,20.0]
[1641627912212,14.71831101,143.38,143.32,4.0]
[1641627912409,14.71831101,143.38,143.37,4.0]
[1641627912909,38.79242567,143.42,143.37,4.0]
[1641627913110,60.43059,143.45,143.41,4.0]
[1641627913510,60.43059,143.45,143.38,27.66479]
[1641627913711,32.7658,143.45,143.38,27.66479]
[1641627913910,32.7658,143.45,143.43,4.0]
[1641627914109,38.08479,143.48,143.43,4.0]
[1641627915013,38.08479,143.48,143.38,27.66479]
[1641627915714,20.0,143.44,143.4,4.0]
[1641627915914,7.294,143.44,143.4,4.0]
[1641627916113,7.294,143.44,143.41,4.0]
[1641627916514,7.294,143.44,143.39,4.0]
[1641627917616,7.294,143.44,143.36,27.66479]
[1641627917817,35.024,143.43,143.38,4.0]
[1641627918017,35.024,143.43,143.36,27.66479]
[1641627918218,35.024,143.43,143.39,4.0]
[1641627918418,35.024,143.43,143.37,4.0]
[1641627918617,35.024,143.43,143.36,4.0]
[1641627918817,35.024,143.43,143.31,4.0]
[1641627919217,27.66479,143.41,143.32,27.66479]
[1641627919419,34.72079,143.41,143.36,4.0]
[1641627921921,34.72079,143.41,143.32,27.66479]
[1641627922220,20.0,143.39,143.33,4.0]
[1641627922620,3.96158671,143.4,143.33,4.0]
[1641627922819,20.0,143.4,143.33,4.0]
[1641627923221,20.0,143.36,143.31,4.0]
[1641627923421,27.66479,143.35,143.31,4.0]
[1641627923622,27.66479,143.35,143.26,27.66479]
[1641627923923,33.3347,143.34,143.3,4.0]
[1641627924122,33.3347,143.34,143.31,4.0]
[1641627925225,27.66479,143.35,143.31,4.0]
[1641627925727,27.66479,143.35,143.26,27.66479]
[1641627925927,31.5525,143.34,143.26,27.66479]
[1641627926527,31.5525,143.34,143.29,4.0]
[1641627927428,31.5525,143.34,143.26,27.66479]
[1641627927630,31.5525,143.34,143.29,4.0]
[1641627929231,20.0,143.32,143.26,27.66479]
[1641627929432,20.0,143.32,143.29,4.0]
[1641627929834,20.0,143.32,143.24,27.66479]
[1641627930032,20.0,143.32,143.28,4.0]
[1641627930234,20.0,143.32,143.22,10.97301443]
[1641627930433,20.0,143.32,143.27,4.0]
[1641627930834,37.4925,143.34,143.23,4.0]
[1641627931132,31.5525,143.34,143.28,4.0]
[1641627931832,31.5525,143.34,143.26,27.66479]
[1641627932032,31.5525,143.34,143.3,4.0]
[1641627932836,31.5525,143.34,143.26,31.66479]
[1641627933035,31.5525,143.34,143.31,4.0]
[1641627933234,55.32958,143.35,143.31,4.0]
[1641627933435,55.32958,143.35,143.27,4.0]
[1641627933635,88.92598,143.35,143.27,4.0]
[1641627934236,88.92598,143.35,143.26,31.66479]
[1641627934437,10.68,143.36,143.27,4.0]
[1641627934636,32.9028,143.39,143.27,7.759]
[1641627935037,43.5628,143.39,143.27,7.759]
[1641627935439,43.5628,143.39,143.27,11.759]
[1641627935637,27.66479,143.38,143.27,11.759]
[1641627937337,27.66479,143.38,143.28,4.0]
[1641627937539,27.66479,143.38,143.3,34.63415962]
[1641627937737,27.66479,143.38,143.3,40.16115962]
[1641627939437,27.66479,143.38,143.3,44.16115962]
[1641627939637,43.5628,143.39,143.3,71.82594962]
[1641627940236,43.5628,143.39,143.31,4.0]
[1641627940639,43.5628,143.39,143.3,71.82594962]
[1641627940840,43.5628,143.39,143.31,4.0]
[1641627941437,43.5628,143.39,143.3,71.82594962]
[1641627942139,48.48120526,143.39,143.31,4.91840526]
[1641627942637,37.82120526,143.39,143.31,4.91840526]
[1641627943137,37.82120526,143.39,143.3,60.24798526]
[1641627943338,46.13720526,143.39,143.3,60.24798526]
[1641627943739,46.13720526,143.39,143.31,4.91840526]
[1641627945339,41.2188,143.39,143.32,4.91840526]
[1641627946441,32.9028,143.39,143.32,12.47040526]
[1641627946742,37.82120526,143.39,143.32,12.47040526]
[1641627947643,37.82120526,143.39,143.34,27.66479]
[1641627951253,32.58319526,143.4,143.34,27.66479]
[1641627951853,4.91840526,143.4,143.34,27.66479]
[1641627952053,4.91840526,143.41,143.34,32.58319526]
[1641627952354,4.91840526,143.41,143.34,36.58319526]
[1641627953759,4.91840526,143.42,143.38,27.66479]
[1641627953959,4.91840526,143.42,143.38,34.72579]
[1641627955960,4.91840526,143.43,143.38,34.72579]
[1641627956762,38.20580526,143.44,143.38,34.72579]
[1641627957564,4.91840526,143.43,143.38,34.72579]
[1641627959566,4.91840526,143.43,143.38,7.061]
[1641627959866,15.44940526,143.43,143.35,4.91840526]
[1641627960869,4.91840526,143.41,143.34,32.58319526]
[1641627961371,4.0,143.4,143.34,32.58319526]
[1641627961571,7.245,143.4,143.34,32.58319526]
[1641627961769,45.63040526,143.4,143.35,6.64683177]
[1641627962670,45.63040526,143.4,143.35,4.91840526]
[1641627962871,4.91840526,143.39,143.33,39.55086527]
[1641627963573,4.91840526,143.38,143.33,39.55086527]
[1641627967476,4.91840526,143.38,143.34,6.64868597]
[1641627968378,38.38540526,143.4,143.36,4.91840526]
[1641627968579,38.38540526,143.4,143.36,10.47440526]
[1641627970683,4.91840526,143.4,143.36,42.13919526]
[1641627970882,2.79474583,143.4,143.36,42.13919526]
[1641627971383,32.9228,143.43,143.37,1.73072692]
[1641627973384,42.42006647,143.46,143.4,4.0]
[1641627973585,14.75527647,143.46,143.42,10.96354584]
[1641627973884,14.75527647,143.46,143.43,4.0]
[1641627974386,7.647e-05,143.46,143.45,4.0]
[1641627974586,38.79242567,143.49,143.45,62.29142907]
[1641627974785,38.79242567,143.49,143.45,66.29142907]
[1641627974985,10.24,143.52,143.45,66.29142907]
[1641627975187,10.24,143.52,143.45,62.29142907]
[1641627975386,10.24,143.52,143.45,66.29142907]
[1641627975786,10.24,143.52,143.46,1.73072692]
[1641627975986,10.24,143.52,143.47,4.0]
[1641627976487,10.24,143.52,143.46,8.35672692]
[1641627976687,10.24,143.52,143.49,27.66479]
[1641627977987,10.24,143.52,143.49,35.16479]
[1641627978186,27.66479,143.57,143.49,35.16479]
[1641627978686,38.10479,143.57,143.49,35.16479]
[1641627978888,38.10479,143.57,143.51,4.0]
[1641627979089,38.10479,143.57,143.49,39.16479]
[1641627979288,10.44,143.57,143.49,39.16479]
[1641627979487,10.44,143.57,143.49,35.16479]
[1641627979688,10.44,143.57,143.49,39.16479]
[1641627979888,64.5623,143.63,143.53,4.0]
[1641627980088,33.7628,143.62,143.54,4.0]
[1641627980288,33.7628,143.62,143.52,4.0]
[1641627980488,36.93348243,143.62,143.52,4.0]
[1641627980787,64.59827243,143.62,143.54,27.66479]
[1641627981188,61.42759,143.62,143.54,31.66479]
[1641627981390,61.42759,143.62,143.54,27.66479]
[1641627983087,61.42759,143.62,143.56,4.0]
[1641627983289,61.42759,143.62,143.56,11.608]
[1641627983987,61.42759,143.62,143.56,7.608]
[1641627984389,61.42759,143.62,143.54,27.66479]
[1641627984992,61.42759,143.62,143.55,4.0]
[1641627985390,61.42759,143.62,143.54,38.62227974]
[1641627985590,61.42759,143.62,143.54,34.62227974]
[1641627986190,69.50759,143.62,143.54,34.62227974]
[1641627989194,8.226,143.62,143.54,34.62227974]
[1641627989595,8.226,143.62,143.54,38.62227974]
[1641627990098,8.226,143.62,143.56,4.0]
[1641627990297,10.52,143.64,143.56,4.0]
[1641627990496,10.52,143.64,143.55,4.0]
[1641627990697,3.95504568,143.63,143.59,27.66479]
[1641627991099,10.52,143.64,143.59,27.66479]
[1641627991699,3.95504794,143.63,143.59,27.66479]
[1641627992299,10.52,143.64,143.59,27.66479]
[1641627995204,10.52,143.64,143.59,19.75639262]
[1641627996704,27.66479,143.66,143.59,19.75639262]
[1641627997004,3.95446675,143.65,143.59,19.75639262]
[1641627997405,32.8322,143.67,143.6,4.0]
[1641627997705,32.8322,143.67,143.61,4.0]
[1641627997906,10.5,143.72,143.62,4.0]
[1641627998105,44.9158,143.72,143.61,11.73]
[1641627998505,3.95336638,143.71,143.62,4.0]
[1641627998704,3.95336638,143.71,143.67,27.66479]
[1641628004717,3.17752716,143.7,143.67,27.66479]
[1641628005118,3.95336638,143.69,143.67,27.66479]
[1641628006922,3.95336638,143.7,143.67,27.66479]
[1641628007525,3.95336638,143.71,143.67,27.66479]
[1641628008227,3.17947706,143.7,143.67,27.66479]
[1641628008826,14.70599973,143.72,143.69,4.0]
[1641628009028,38.79242567,143.76,143.71,6.94854602]
[1641628009327,38.79242567,143.76,143.75,6.94709785]
[1641628009527,38.79242567,143.76,143.75,14.25509785]
[1641628009727,38.79242567,143.76,143.75,18.25509785]
[1641628009931,38.79242567,143.76,143.75,14.25509785]
[1641628010230,34.2275,143.83,143.75,14.25509785]
[1641628010430,31.4843,143.85,143.75,14.25509785]
[1641628010628,31.8748,143.86,143.75,14.25509785]
[1641628010830,31.8748,143.86,143.83,27.66479]
[1641628011029,10.62,143.87,143.83,33.44279]
[1641628014432,10.62,143.87,143.83,37.44279]
[1641628014631,10.62,143.87,143.83,33.44279]
[1641628023536,10.62,143.87,143.83,27.66479]
[1641628026243,3.94870798,143.86,143.83,27.66479]
[1641628027844,10.62,143.87,143.83,27.66479]
[1641628028744,44.3966,143.91,143.83,27.66479]
[1641628028944,37.9966,143.91,143.87,27.66479]
[1641628029146,3.94832989,143.9,143.87,27.66479]
[1641628034152,10.19132989,143.9,143.87,27.66479]
[1641628035052,3.94832989,143.89,143.87,27.66479]
[1641628036754,4.0,143.88,143.83,27.66479]
[1641628036954,3.94832989,143.89,143.83,27.66479]
[1641628037853,7.94832989,143.89,143.83,27.66479]
[1641628038053,3.94832989,143.89,143.83,27.66479]
[1641628038253,4.86604613,143.88,143.83,27.66479]
[1641628039556,36.6846,143.9,143.83,27.66479]
[1641628039557,4.86604613,143.86,143.83,27.66479]
[1641628041556,4.86604613,143.84,143.83,27.66479]
[1641628042456,20.54110484,143.87,143.83,27.66479]
[1641628042657,6.839,143.84,143.83,27.66479]
[1641628044458,6.839,143.84,143.8,27.66479]
[1641628045159,10.839,143.84,143.8,27.66479]
[1641628045358,4.92457319,143.81,143.8,27.66479]
[1641628046960,25.59110484,143.84,143.8,27.66479]
[1641628048062,18.70154611,143.83,143.8,27.66479]
[1641628048462,18.75210484,143.83,143.8,22.76239]
[1641628048664,18.75210484,143.83,143.8,6.11319]
[1641628048862,18.75210484,143.83,143.77,27.66479]
[1641628049262,14.75210484,143.83,143.77,27.66479]
[1641628049662,4.92131456,143.8,143.77,27.66479]
[1641628050666,4.92131456,143.8,143.76,4.86604613]
[1641628050862,8.92131456,143.8,143.76,4.86604613]
[1641628051062,4.92131456,143.8,143.76,4.86604613]
[1641628051262,4.92131456,143.79,143.75,27.66479]
[1641628052364,4.92131456,143.79,143.75,32.53083613]
[1641628053166,11.76814075,143.84,143.78,4.0]
[1641628053365,11.76814075,143.84,143.83,55.32958]
[1641628053565,11.76814075,143.84,143.83,62.69358]
[1641628053964,58.71213272,143.9,143.83,62.69358]
[1641628054165,4.0,143.89,143.83,62.69358]
[1641628054364,14.16,143.92,143.83,62.69358]
[1641628054966,4.0,143.91,143.83,62.69358]
[1641628055165,7.94775143,143.91,143.83,54.79962692]
[1641628055365,4.0,143.9,143.83,54.79962692]
[1641628055565,4.0,143.91,143.83,54.79962692]
[1641628055767,53.57232222,143.92,143.83,54.79962692]
[1641628056566,27.66479,143.92,143.83,54.79962692]
[1641628056766,31.66479,143.92,143.83,54.79962692]
[1641628057168,4.0,143.92,143.83,54.79962692]
[1641628057368,42.525,143.93,143.86,27.66479]
[1641628057369,10.4,143.93,143.86,27.66479]
[1641628057569,10.4,143.93,143.86,35.65279]
[1641628058669,4.0,143.96,143.86,35.65279]
[1641628059271,4.0,143.95,143.86,35.65279]
[1641628059472,4.0,143.94,143.86,63.31758]
[1641628059872,4.0,143.93,143.86,63.31758]
[1641628060071,4.0,143.94,143.86,63.31758]
[1641628060270,4.0,143.95,143.86,63.31758]
[1641628060470,4.0,143.94,143.86,63.31758]
[1641628060772,7.94722686,143.94,143.86,63.31758]
[1641628061173,3.94722686,143.93,143.86,63.31758]
[1641628062173,7.94722686,143.94,143.86,63.31758]
[1641628062575,11.73263399,143.96,143.86,63.31758]
[1641628062773,11.73263399,143.96,143.87,6.94155213]
[1641628062977,11.73263399,143.96,143.91,6.93986606]
[1641628063175,11.73263399,143.96,143.91,12.89086606]
[1641628063378,4.0,143.97,143.91,12.89086606]
[1641628063577,4.0,143.97,143.94,27.66479]
[1641628063876,4.0,143.97,143.94,33.54079]
[1641628064278,4.0,143.97,143.94,5.876]
[1641628064977,4.0,143.96,143.94,5.876]
[1641628065277,4.0,143.95,143.87,6.94155213]
[1641628065579,4.0,143.96,143.87,34.60634213]
[1641628065778,10.697,143.96,143.87,34.60634213]
[1641628065979,4.0,143.95,143.87,34.60634213]
[1641628066379,10.697,143.96,143.87,34.60634213]
[1641628066778,4.0,143.94,143.87,34.60634213]
[1641628067078,10.697,143.96,143.87,34.60634213]
[1641628067380,4.0,143.95,143.87,34.60634213]
[1641628067582,4.0,143.94,143.87,27.66479]
[1641628067780,10.697,143.96,143.87,27.66479]
[1641628068380,3.94693152,143.95,143.87,27.66479]
[1641628068780,10.697,143.96,143.87,27.66479]
[1641628069379,4.0,143.95,143.87,27.66479]
[1641628069781,4.0,143.94,143.87,27.66479]
[1641628069980,4.0,143.95,143.87,27.66479]
[1641628070683,4.0,143.93,143.87,27.66479]
[1641628070882,4.0,143.92,143.87,27.66479]
[1641628071083,4.0,143.92,143.85,27.66479]
[1641628071483,4.0,143.91,143.85,27.66479]
[1641628071684,4.0,143.91,143.83,6.94348007]
[1641628071884,4.0,143.9,143.83,6.94348007]
[1641628072083,10.99,143.9,143.83,6.94348007]
[1641628072483,6.99,143.9,143.83,6.94348007]
[1641628072683,10.99,143.9,143.83,6.94348007]